lending/lending_fUSD_20260222
["ID","MTS","AMOUNT","RATE_DAILY","PERIOD"]
[406321219,1771733469140,-500.0,0.00044383,120]
[406321220,1771733469149,-484.21588574,0.00044383,120]
[406321221,1771733469157,-500.0,0.00044383,120]
[406321222,1771733469166,-549.70418513,0.00044383,120]
[406321223,1771733469175,-503.23789118,0.00044383,120]
[406321224,1771733469185,-511.07440579,0.00044383,120]
[406321225,1771733469194,-500.0,0.00044383,120]
[406321226,1771733469203,-633.8530321,0.00044383,120]
[406321227,1771733469213,-391.31957833,0.00044383,120]
[406321228,1771733469223,-534.89751428,0.00044383,120]
[406321229,1771733469232,-515.24348936,0.00044383,120]
[406321230,1771733469243,-500.0,0.00044383,120]
[406321231,1771733469252,-500.0,0.00044383,120]
[406321232,1771733469262,-601.83478404,0.00044383,120]
[406321233,1771733469271,-500.0,0.00044383,120]
[406321234,1771733469281,-500.0,0.00044383,120]
[406321235,1771733469291,-500.0,0.00044383,120]
[406321236,1771733469300,-532.30513784,0.00044383,120]
[406321237,1771733469310,-503.27306231,0.00044383,120]
[406321238,1771733469320,-500.0,0.00044383,120]
[406321239,1771733469329,-500.0,0.00044383,120]
[406321240,1771733469341,-500.0,0.00044383,120]
[406321241,1771733469351,-522.30674813,0.00044383,120]
[406321242,1771733469361,-500.0,0.00044383,120]
[406321243,1771733469371,-500.0,0.00044383,120]
[406321244,1771733469381,-402.03347641,0.00044383,120]
[406321245,1771733469392,-164.97234182,0.00044383,120]
[406321246,1771733469404,-500.0,0.00044383,120]
[406321247,1771733469413,-500.0,0.00044383,120]
[406321248,1771733469423,-500.0,0.00044383,120]
[406321249,1771733469434,-500.0,0.00044383,120]
[406321250,1771733469445,-500.0,0.00044383,120]
[406321251,1771733469454,-500.0,0.00044383,120]
[406321252,1771733469465,-500.0,0.00044383,120]
[406321253,1771733469475,-500.0,0.00044383,120]
[406321254,1771733469485,-500.0,0.00044383,120]
[406321255,1771733469495,-500.0,0.00044383,120]
[406321256,1771733469506,-500.0,0.00044383,120]
[406321257,1771733469516,-500.0,0.00044383,120]
[406321258,1771733469527,-500.0,0.00044383,120]
[406321259,1771733469536,-500.0,0.00044383,120]
[406321260,1771733469548,-500.0,0.00044383,120]
[406321261,1771733469557,-500.0,0.00044383,120]
[406321262,1771733469566,-500.0,0.00044383,120]
[406321263,1771733469575,-500.0,0.00044383,120]
[406321264,1771733469584,-500.0,0.00044383,120]
[406321265,1771733469593,-163.28578691,0.00044383,120]
[406321266,1771733469603,-153.10529557,0.00044383,120]
[406321267,1771733469611,-347.22097843,0.00044383,120]
[406321268,1771733469621,-500.0,0.00044383,120]
[406321269,1771733469630,-500.0,0.00044383,120]
[406321270,1771733469639,-500.0,0.00044383,120]
[406321271,1771733469648,-500.0,0.00044383,120]
[406321272,1771733469657,-500.0,0.00044383,120]
[406321273,1771733469667,-500.0,0.00044383,120]
[406321274,1771733469677,-500.0,0.00044383,120]
[406321275,1771733469687,-500.0,0.00044383,120]
[406321276,1771733469698,-500.0,0.00044383,120]
[406321277,1771733469708,-500.0,0.00044383,120]
[406321278,1771733469719,-500.0,0.00044383,120]
[406321279,1771733469728,-500.0,0.00044383,120]
[406321280,1771733469740,-500.0,0.00044383,120]
[406321281,1771733469750,-500.0,0.00044383,120]
[406321282,1771733469761,-500.0,0.00044383,120]
[406321283,1771733469770,-500.0,0.00044383,120]
[406321284,1771733469780,-500.0,0.00044383,120]
[406321285,1771733469789,-500.0,0.00044383,120]
[406321286,1771733469799,-500.0,0.00044383,120]
[406321287,1771733469815,-556.07882672,0.00044383,120]
[406321288,1771733469824,-77559.593805,0.00044383,120]
[406321289,1771733469834,-7490.333527,0.00044383,120]
[406321290,1771733469844,-426.01,0.00044383,2]
[406321291,1771733469854,-426.01,0.00044383,2]
[406321292,1771733469867,-426.01,0.00044383,2]
[406321293,1771733469876,-426.01,0.00044383,2]
[406321294,1771733469886,-426.01,0.00044383,2]
[406321295,1771733469895,-426.01,0.00044383,2]
[406321296,1771733469907,-426.01,0.00044383,2]
[406321297,1771733469916,-426.01,0.00044383,2]
[406321298,1771733469925,-426.01,0.00044383,2]
[406321299,1771733469935,-426.01,0.00044383,2]
[406321300,1771733469944,-426.01,0.00044383,2]
[406321301,1771733469953,-426.01,0.00044383,2]
[406321302,1771733469962,-426.01,0.00044383,2]
[406321303,1771733469971,-426.01,0.00044383,2]
[406321304,1771733469981,-426.01,0.00044383,2]
[406321305,1771733469990,-426.01,0.00044383,2]
[406321306,1771733469999,-426.01,0.00044383,2]
[406321307,1771733470008,-426.01,0.00044383,2]
[406321308,1771733470018,-426.01,0.00044383,2]
[406321309,1771733470027,-426.01,0.00044383,2]
[406321310,1771733470037,-426.01,0.00044383,2]
[406321311,1771733470046,-426.01,0.00044383,2]
[406321312,1771733470055,-426.01,0.00044383,2]
[406321313,1771733470064,-426.01454526,0.00044383,2]
[406321314,1771733470073,-500.0,0.00044383,120]
[406321315,1771733470083,-500.0,0.00044383,120]
[406321316,1771733470092,-1368.97,0.00044383,2]
[406321317,1771733470101,-1368.97,0.00044383,2]
[406321318,1771733470111,-1368.97,0.00044383,2]
[406321319,1771733470120,-1368.97,0.00044383,2]
[406321320,1771733470129,-1368.97,0.00044383,2]
[406321321,1771733470138,-1368.97,0.00044383,2]
[406321322,1771733470147,-1368.97,0.00044383,2]
[406321323,1771733470156,-1368.97,0.00044383,2]
[406321324,1771733470165,-1368.97,0.00044383,2]
[406321325,1771733470174,-1368.97,0.00044383,2]
[406321326,1771733470183,-1368.97,0.00044383,2]
[406321327,1771733470191,-1368.97,0.00044383,2]
[406321328,1771733470200,-1368.97,0.00044383,2]
[406321329,1771733470209,-182.87,0.00044383,120]
[406321330,1771733470218,-1368.97,0.00044383,2]
[406321331,1771733470228,-1368.97,0.00044383,2]
[406321332,1771733470237,-1368.97,0.00044383,2]
[406321333,1771733470246,-1368.97,0.00044383,2]
[406321334,1771733470255,-1368.97,0.00044383,2]
[406321335,1771733470264,-1368.97,0.00044383,2]
[406321336,1771733470273,-1368.97,0.00044383,2]
[406321337,1771733470282,-1368.97,0.00044383,2]
[406321338,1771733470291,-1368.97,0.00044383,2]
[406321339,1771733470299,-1368.97,0.00044383,2]
[406321340,1771733470308,-1369.15267426,0.00044383,2]
[406321341,1771733470317,-500.0,0.00044383,2]
[406321342,1771733470326,-500.0,0.00044383,2]
[406321343,1771733470335,-500.0,0.00044383,2]
[406321344,1771733470344,-500.0,0.00044383,2]
[406321345,1771733470353,-500.0,0.00044383,2]
[406321346,1771733470362,-500.0,0.00044383,2]
[406321347,1771733470372,-500.0,0.00044383,2]
[406321348,1771733470381,-500.0,0.00044383,2]
[406321349,1771733470390,-500.0,0.00044383,2]
[406321350,1771733470399,-500.0,0.00044383,2]
[406321351,1771733470408,-500.0,0.00044383,2]
[406321352,1771733470417,-500.0,0.00044383,2]
[406321353,1771733470426,-500.0,0.00044383,2]
[406321354,1771733470435,-500.0,0.00044383,2]
[406321355,1771733470444,-500.0,0.00044383,2]
[406321356,1771733470454,-500.0,0.00044383,2]
[406321357,1771733470463,-500.0,0.00044383,2]
[406321358,1771733470473,-500.0,0.00044383,2]
[406321359,1771733470565,-215.06775882,0.00044383,2]
[406321360,1771733470574,-500.0,0.00044383,2]
[406321361,1771733470583,-500.0,0.00044383,2]
[406321362,1771733470592,-500.0,0.00044383,2]
[406321363,1771733470601,-500.0,0.00044383,2]
[406321364,1771733470610,-500.0,0.00044383,2]
[406321365,1771733470619,-500.0,0.00044383,2]
[406321366,1771733470628,-249.08055047,0.00044383,2]
[406321367,1771733470638,-188.7528712,0.00044383,120]
[406321368,1771733470647,-300.0,0.00044383,2]
[406321369,1771733470655,-300.0,0.00044383,2]
[406321370,1771733470665,-300.0,0.00044383,2]
[406321371,1771733470674,-300.0,0.00044383,2]
[406321372,1771733470683,-300.0,0.00044383,2]
[406321373,1771733470692,-300.0,0.00044383,2]
[406321374,1771733470700,-300.0,0.00044383,2]
[406321375,1771733470709,-300.0,0.00044383,2]
[406321376,1771733470723,-300.0,0.00044383,2]
[406321377,1771733470733,-300.0,0.00044383,2]
[406321378,1771733470742,-300.0,0.00044383,2]
[406321379,1771733470751,-300.0,0.00044383,2]
[406321380,1771733470760,-300.0,0.00044383,2]
[406321381,1771733470770,-406.52633743,0.00044383,2]
[406321382,1771733470780,-918.19344534,0.00044383,120]
[406321383,1771733470789,-177.22965159,0.00044383,120]
[406321384,1771733470798,-500.0,0.00044383,120]
[406321385,1771733470807,-500.0,0.00044383,120]
[406321386,1771733470817,-500.0,0.00044383,120]
[406321387,1771733470827,-500.0,0.00044383,120]
[406321388,1771733470839,-500.0,0.00044383,120]
[406321389,1771733470849,-503.50151878,0.00044383,120]
[406321390,1771733470866,-500.0,0.00044383,2]
[406321391,1771733470875,-500.0,0.00044383,2]
[406321392,1771733470885,-500.0,0.00044383,2]
[406321393,1771733470895,-500.0,0.00044383,2]
[406321394,1771733470906,-500.0,0.00044383,2]
[406321395,1771733470915,-500.0,0.00044383,2]
[406321396,1771733470924,-500.0,0.00044383,2]
[406321397,1771733470934,-150.0,0.000444,120]
[406321398,1771733470943,-150.0,0.000444,120]
[406321399,1771733470952,-150.0,0.000444,120]
[406321400,1771733470961,-150.0,0.000444,120]
[406321401,1771733470971,-200.0,0.00044472,120]
[406321402,1771733470980,-406.8149406,0.00044473,2]
[406321403,1771733470989,-2038.3,0.00044484,2]
[406321404,1771733470998,-500.0,0.00044521,60]
[406321405,1771733471008,-1000.0,0.0004453,2]
[406321406,1771733471017,-178.6936068,0.00044633,30]
[406321407,1771733471026,-156.72295757,0.00044633,120]
[406321408,1771733471035,-25000.0,0.00044672,15]
[406321409,1771733471044,-25000.0,0.00044681,15]
[406321410,1771733471053,-402.42731676,0.00044681,15]
[406321411,1771733471063,-215.5185413,0.000447,120]
[406321412,1771733471072,-1000.0,0.000447,120]
[406321413,1771733471081,-181.14972164,0.000447,90]
[406321414,1771733471090,-170.21765846,0.000447,120]
[406321415,1771733471099,-1249.8112009,0.00044726,120]
[406321416,1771733471108,-406.8149406,0.00044731,2]
[406321417,1771733471117,-350.0,0.00044768,10]
[406321418,1771733471126,-5000.0,0.00044787,120]
[406321419,1771733471135,-1078.01211135,0.00044818,120]
[406321420,1771733471145,-152.0,0.00044835,7]
[406321421,1771733471154,-159.21129147,0.00044845,2]
[406321422,1771733471163,-1710.77,0.0004487,99]
[406321423,1771733471186,-1710.77,0.0004487,99]
[406321424,1771733471202,-1710.77,0.0004487,99]
[406321425,1771733471220,-1710.77,0.0004487,99]
[406321426,1771733471239,-1710.77,0.0004487,99]
[406321427,1771733471253,-1710.77,0.0004487,99]
[406321428,1771733471271,-1710.77,0.0004487,99]
[406321429,1771733471290,-1710.77,0.0004487,99]
[406321430,1771733471308,-1710.77,0.0004487,99]
[406321431,1771733471326,-1710.77,0.0004487,99]
[406321432,1771733471342,-1710.77,0.0004487,99]
[406321433,1771733471362,-1710.77,0.0004487,99]
[406321434,1771733471377,-1710.77,0.0004487,99]
[406321435,1771733471394,-1710.77,0.0004487,99]
[406321436,1771733471408,-1710.77,0.0004487,99]
[406321437,1771733471423,-1710.77,0.0004487,99]
[406321438,1771733471437,-1710.77,0.0004487,99]
[406321439,1771733471451,-1710.77,0.0004487,99]
[406321440,1771733471467,-1710.77,0.0004487,99]
[406321441,1771733471481,-1710.77,0.0004487,99]
[406321442,1771733471496,-1710.77,0.0004487,99]
[406321443,1771733471510,-1710.77,0.0004487,99]
[406321444,1771733471524,-1710.77,0.0004487,99]
[406321445,1771733471539,-1710.77,0.0004487,99]
[406321446,1771733471553,-1710.77,0.0004487,99]
[406321447,1771733471568,-1710.77,0.0004487,99]
[406321448,1771733471583,-1710.77,0.0004487,99]
[406321449,1771733471597,-1710.77,0.0004487,99]
[406321450,1771733471612,-1710.77,0.0004487,99]
[406321451,1771733471626,-1710.7635848,0.0004487,99]
[406321452,1771733471641,-150.0,0.00044873,10]
[406321453,1771733471655,-151.0,0.000449,120]
[406321454,1771733471670,-2611.30910647,0.000449,120]
[406321455,1771733471685,-151.88810542,0.000449,2]
[406321456,1771733471700,-150.20028635,0.00044932,2]
[406321457,1771733471715,-221.0,0.0004496,30]
[406321458,1771733471730,-3806.471521,0.00044969,2]
[406321459,1771733471744,-500.0,0.00044973,10]
[406321460,1771733471757,-159.58835011,0.00044973,2]
[406321461,1771733471772,-294.76269112,0.00044973,2]
[406321462,1771733471787,-3806.47152098,0.00044979,2]
[406321463,1771733471801,-294.7626911,0.00044981,2]
[406321464,1771733471816,-3806.47152098,0.00044989,2]
[406321465,1771733471829,-623.01963681,0.00044989,15]
[406321466,1771733471844,-294.7626911,0.00044989,2]
[406321467,1771733471860,-406.8149406,0.00044989,2]
[406321468,1771733471875,-689.24638722,0.00044989,28]
[406321469,1771733471889,-150.0,0.00044989,30]
[406321470,1771733471906,-150.0,0.00044989,30]
[406321471,1771733471920,-150.0,0.00044989,30]
[406321472,1771733471936,-150.0,0.00044989,30]
[406321473,1771733471951,-150.0,0.00044989,30]
[406321474,1771733471967,-150.0,0.00044989,30]
[406321475,1771733471981,-233.88755631,0.00044989,30]
[406321476,1771733471996,-477.43744962,0.00044989,120]
[406321477,1771733472010,-477.43744962,0.00044989,120]
[406321478,1771733472024,-477.43744962,0.00044989,120]
[406321479,1771733472040,-477.43744962,0.00044989,120]
[406321480,1771733472053,-477.43744962,0.00044989,120]
[406321481,1771733472070,-477.43744962,0.00044989,120]
[406321482,1771733472089,-477.43744962,0.00044989,120]
[406321483,1771733472099,-477.43744962,0.00044989,120]
[406321484,1771733472108,-477.43744962,0.00044989,120]
[406321485,1771733472118,-477.43744962,0.00044989,120]
[406321486,1771733472128,-477.43744962,0.00044989,120]
[406321487,1771733472137,-477.43744962,0.00044989,120]
[406321488,1771733472297,-477.43744962,0.00044989,120]
[406321489,1771733472320,-477.43744962,0.00044989,120]
[406321490,1771733472330,-477.43744962,0.00044989,120]
[406321491,1771733472340,-477.43744962,0.00044989,120]
[406321492,1771733472351,-477.43744962,0.00044989,120]
[406321493,1771733472361,-477.43744962,0.00044989,120]
[406321494,1771733472370,-477.43744962,0.00044989,120]
[406321495,1771733472379,-477.43,0.00044989,120]
[406321496,1771733472388,-1114.02071578,0.00044989,120]
[406321497,1771733472397,-1114.02071578,0.00044989,120]
[406321498,1771733472406,-1114.02071578,0.00044989,120]
[406321499,1771733472415,-1114.02071578,0.00044989,120]
[406321500,1771733472424,-1114.02071578,0.00044989,120]
[406321501,1771733472433,-1114.02071578,0.00044989,120]
[406321502,1771733472442,-1114.02071578,0.00044989,120]
[406321503,1771733472451,-1114.02071578,0.00044989,120]
[406321504,1771733472460,-1114.02071578,0.00044989,120]
[406321505,1771733472471,-1114.02071578,0.00044989,120]
[406321506,1771733472480,-1114.02071578,0.00044989,120]
[406321507,1771733472489,-1114.02071578,0.00044989,120]
[406321508,1771733472499,-1114.02071578,0.00044989,120]
[406321509,1771733472508,-1114.02071578,0.00044989,120]
[406321510,1771733472518,-1114.02071578,0.00044989,120]
[406321511,1771733472527,-1114.02071578,0.00044989,120]
[406321512,1771733472537,-1114.02071578,0.00044989,120]
[406321513,1771733472546,-1114.02071578,0.00044989,120]
[406321514,1771733472555,-1114.02071578,0.00044989,120]
[406321515,1771733472564,-1114.02,0.00044989,120]
[406321516,1771733472573,-650.0,0.00045,60]
[406321517,1771733472583,-434.71323514,0.00045,60]
[406321518,1771733472592,-315.93,0.00045,120]
[406321519,1771733472602,-403.52738313,0.00045,120]
[406321520,1771733472611,-174.98175833,0.00045,60]
[406321521,1771733472620,-6962.12,0.00045,2]
[406321522,1771733472629,-64417.97485641,0.00045,60]
[406321523,1771733472820,-333.36526295,0.00045,60]
[406321524,1771733472898,-151.0,0.00032472,7]
[406321525,1771733472908,-151.0,0.00032472,7]
[406321526,1771733472917,-151.0,0.00032502,7]
[406321527,1771733472928,-151.0,0.00032502,7]
[406321528,1771733472938,-151.0,0.00032591,7]
[406321529,1771733472948,-151.0,0.00032951,31]
[406321530,1771733472957,-151.0,0.0003318,31]
[406321531,1771733472966,-920.0,0.0004359,15]
[406321532,1771733473506,163.6634953,0.00015173,2]
[406321533,1771733473597,500.0,0.00015173,2]
[406321537,1771733529433,503.79287711,0.00015173,2]
[406321538,1771733551806,337.0,0.00011821,2]
[406321539,1771733555269,337.0,0.00013403,2]
[406321540,1771733555995,338.34593673,0.00014074,2]
[406321541,1771733589806,500.0,0.00015173,2]
[406321542,1771733706179,500.0,0.00015173,2]
[406321543,1771733711812,346.54399359,0.00015173,2]
[406321544,1771733825360,501.72935884,0.00015173,2]
[406321545,1771733882988,500.0,0.00015173,2]
[406321546,1771733886377,544.61216662,0.00015173,2]
[406321548,1771734367162,6178.10131736,0.00015,2]
[406321549,1771734367182,2821.89868264,0.00015,2]
[406321550,1771734379622,11560.17172919,0.00015,2]
[406321551,1771734379657,2021.47063333,0.00015,2]
[406321565,1771734631611,-300.0,0.00013999,2]
[406321567,1771734631621,-300.0,0.00013999,2]
[406321569,1771734631631,-88.69011897,0.00013999,2]
[406321573,1771734631674,-1111.30988103,0.00013999,2]
[406321574,1771734631684,-388.69011897,0.00014,2]
[406321575,1771734631747,-905.49547409,0.00014,2]
[406321577,1771734631849,-15596.33778609,0.00014,2]
[406321586,1771734637680,-1109.47662085,0.00014,2]
[406321587,1771734637689,-3742.91567159,0.00015,2]
[406321588,1771734637736,-665.92393664,0.00015,2]
[406321589,1771734637847,-9.51802925,0.00015,2]
[406321590,1771734637856,-1540.94721724,0.00015399,2]
[406321591,1771734637868,-139.05278276,0.00015399,2]
[406321592,1771734637877,-194.14128301,0.000154,2]
[406321593,1771734637886,-242.37,0.000157,2]
[406321594,1771734637895,-1000.0,0.00015721,2]
[406321595,1771734637905,-162.2,0.00016,5]
[406321596,1771734637915,-1477.4534033,0.00022885,2]
[406321597,1771734637924,-1477.4534033,0.00025827,2]
[406321598,1771734637933,-2809.88,0.00027397,10]
[406321599,1771734637946,-1477.4534033,0.0002877,2]
[406321600,1771734637955,-331.21,0.00028999,2]
[406321601,1771734637965,-200.0,0.00029008,19]
[406321612,1771734638215,-331.21,0.0002938,2]
[406321613,1771734638225,-331.21,0.00029762,2]
[406321614,1771734638235,-331.21,0.00030143,2]
[406321615,1771734638245,-331.21,0.00030525,2]
[406321616,1771734638255,-331.21,0.00030906,2]
[406321617,1771734638269,-331.21,0.00031288,2]
[406321618,1771734638278,-331.21,0.0003167,2]
[406321619,1771734638287,-1477.4534033,0.00031712,2]
[406321620,1771734638296,-200.45,0.00031853,30]
[406321621,1771734638305,-238.0,0.00032051,2]
[406321622,1771734638314,-331.21,0.00032051,2]
[406321623,1771734638324,-331.21,0.00032433,2]
[406321624,1771734638333,-331.21,0.00032814,2]
[406321625,1771734638343,-331.21,0.00033196,2]
[406321626,1771734638353,-331.21,0.00033577,2]
[406321627,1771734638363,-331.21,0.00033959,2]
[406321628,1771734638372,-331.21,0.0003434,2]
[406321629,1771734638382,-677.8,0.00034666,2]
[406321630,1771734638392,-331.21,0.00034722,2]
[406321631,1771734638401,-395.46115116,0.00035,120]
[406321632,1771734638410,-331.21,0.00035104,2]
[406321633,1771734638420,-331.21,0.00035485,2]
[406321634,1771734638429,-331.21,0.00035867,2]
[406321635,1771734638439,-3240.0,0.00036042,120]
[406321636,1771734638448,-331.21,0.00036248,2]
[406321637,1771734638458,-200.0,0.00036476,2]
[406321638,1771734638469,-150.0,0.00036639,2]
[406321639,1771734638478,-1386.59,0.00037198,2]
[406321640,1771734638487,-500.0,0.00037242,2]
[406321641,1771734638497,-922.643,0.000383,51]
[406321642,1771734638506,-172.19740078,0.000383,51]
[406321643,1771734638515,-581.0,0.000383,2]
[406321644,1771734638525,-853.0,0.000383,2]
[406321645,1771734638534,-433.0,0.000383,2]
[406321646,1771734638543,-1210.0,0.00039511,2]
[406321647,1771734638552,-1000.0,0.0003958,2]
[406321648,1771734638561,-1600.0,0.0004,120]
[406321649,1771734638570,-179.83,0.00041341,2]
[406321650,1771734638578,-7872.034709,0.00041867,60]
[406321651,1771734638587,-2500.0,0.0004231,2]
[406321652,1771734638596,-169.04961687,0.00042399,2]
[406321653,1771734638605,-467.59813642,0.00042399,2]
[406321654,1771734638614,-197.93325786,0.000424,7]
[406321655,1771734638623,-197.93325786,0.000424,7]
[406321656,1771734638633,-346.09974962,0.00042409,31]
[406321657,1771734638643,-500.0,0.00042409,7]
[406321658,1771734638652,-500.0,0.00042409,31]
[406321659,1771734638662,-401.09966005,0.00042409,7]
[406321660,1771734638672,-500.0,0.00042409,31]
[406321661,1771734638681,-500.0,0.00042409,31]
[406321662,1771734638690,-500.0,0.00042409,31]
[406321663,1771734638699,-474.02245772,0.00042409,7]
[406321664,1771734638708,-378.28023991,0.00042409,31]
[406321665,1771734638718,-500.0,0.00042409,31]
[406321666,1771734638726,-500.0,0.00042409,31]
[406321667,1771734638736,-505.30600696,0.00042409,31]
[406321668,1771734638745,-500.0,0.00042409,31]
[406321669,1771734638754,-500.0,0.00042409,31]
[406321670,1771734638763,-500.0,0.00042409,31]
[406321671,1771734638774,-500.0,0.00042409,31]
[406321672,1771734638786,-500.0,0.00042409,31]
[406321673,1771734638795,-500.0,0.00042409,31]
[406321674,1771734638804,-500.0,0.00042409,31]
[406321675,1771734638821,-500.0,0.00042409,31]
[406321676,1771734638834,-500.0,0.00042409,31]
[406321677,1771734638843,-500.0,0.00042409,31]
[406321678,1771734638853,-500.0,0.00042409,31]
[406321679,1771734638872,-500.0,0.00042409,31]
[406321680,1771734638882,-500.0,0.00042409,31]
[406321681,1771734638891,-248.92350355,0.00042409,31]
[406321682,1771734638901,-500.0,0.00042409,31]
[406321683,1771734638910,-500.0,0.00042409,31]
[406321684,1771734638920,-500.0,0.00042409,31]
[406321685,1771734638929,-500.0,0.00042409,31]
[406321686,1771734638938,-500.0,0.00042409,31]
[406321687,1771734638948,-500.0,0.00042409,31]
[406321688,1771734638957,-500.0,0.00042409,31]
[406321689,1771734638967,-500.0,0.00042409,31]
[406321690,1771734638976,-500.0,0.00042409,31]
[406321691,1771734638986,-500.0,0.00042409,31]
[406321692,1771734638995,-500.0,0.00042409,31]
[406321693,1771734639005,-500.0,0.00042409,31]
[406321694,1771734639015,-500.0,0.00042409,31]
[406321695,1771734639024,-500.0,0.00042409,31]
[406321696,1771734639034,-500.0,0.00042409,31]
[406321697,1771734639043,-218.17500901,0.00042409,31]
[406321698,1771734639053,-500.0,0.00042409,31]
[406321699,1771734639063,-97256.18610089,0.0004241,55]
[406321700,1771734639077,-4097.43696543,0.0004241,55]
[406321702,1771734639907,-6825.00000001,0.0004241,55]
[406321703,1771734640340,-504.38,0.0004241,55]
[406321704,1771734640395,-862.5027801,0.0004241,55]
[406321714,1771734642912,-343.07272125,0.0004241,55]
[406321755,1771735831751,-166.66,0.00038135,30]
[406321757,1771735831760,-166.66,0.00038938,30]
[406321759,1771735831769,-177.0999979,0.0003918,120]
[406321760,1771735831778,-369.81567041,0.0003918,14]
[406321761,1771735831787,-766.46666668,0.0003918,2]
[406321762,1771735831796,-311.73209094,0.0003918,2]
[406321763,1771735831805,-197.93325788,0.0003927,2]
[406321764,1771735831815,-1200.0,0.00039278,5]
[406321765,1771735831824,-246.87898196,0.00039279,15]
[406321766,1771735831835,-253.12101804,0.00039279,15]
[406321767,1771735831843,-138.89547886,0.00039279,15]
[406321768,1771735831862,-213.82702745,0.00039279,15]
[406321769,1771735831872,-500.0,0.00039279,15]
[406321770,1771735831881,-500.0,0.00039279,15]
[406321771,1771735831890,-500.0,0.00039279,15]
[406321772,1771735831899,-500.0,0.00039279,15]
[406321773,1771735831908,-500.0,0.00039279,15]
[406321774,1771735831917,-500.0,0.00039279,15]
[406321775,1771735831926,-574.89235036,0.00039279,15]
[406321776,1771735831935,-306.46600719,0.00039279,21]
[406321777,1771735831945,-59070.24820428,0.00039279,21]
[406321778,1771735831954,-138800.07967201,0.0003928,2]
[406321779,1771735831972,-364.72373208,0.0003928,2]
[406321789,1771735837977,-3480.36666167,0.0003928,2]
[406321790,1771735837988,-696.6099996,0.0003928,2]
[406321791,1771735838032,-205108.1958344,0.0003928,2]
[406321796,1771735840519,-262.22519838,0.0003928,2]
[406321797,1771735840576,-2299.1,0.0003928,2]
[406321802,1771735843003,-728.04625164,0.0003928,2]
[406321803,1771735843217,-8345.08071852,0.0003928,2]
[406321804,1771735843274,-1071.18168082,0.0003928,2]
[406321805,1771735843287,-325.58015431,0.0003928,2]
[406321806,1771735843298,-633.70747609,0.0003928,2]
[406321807,1771735843333,-3749.65321666,0.0003928,2]
[406321808,1771735843345,-328.38958692,0.0003928,2]
[406321809,1771735843356,-887.1555738,0.0003928,2]
[406321823,1771735845782,-26419.29320883,0.0003928,2]
[406321825,1771735845793,-869.56537584,0.0003928,2]
[406321829,1771735845838,-1628.08499808,0.0003928,2]
[406321834,1771735846054,-923.0685214,0.0003928,2]
[406321853,1771736849491,5000.0,0.0001911,120]
[406321856,1771736902254,27000.0,0.00019,120]
[406321859,1771737031939,-300.0,0.00014999,2]
[406321860,1771737031949,-300.0,0.00014999,2]
[406321861,1771737031958,-925.88974738,0.00014999,2]
[406321862,1771737031995,-274.11025262,0.00014999,2]
[406321863,1771737032004,-300.0,0.00014999,2]
[406321864,1771737032014,-7534.24001584,0.00015,2]
[406321865,1771737032052,-469.90281369,0.00015,2]
[406321866,1771737032063,-499.50294632,0.00015,2]
[406321867,1771737032074,-292.02923339,0.00015,2]
[406321874,1771737038051,-718.06097248,0.00015,2]
[406321875,1771737038063,-7417.75449728,0.00015,2]
[406321876,1771737038113,-750.97674804,0.00015,2]
[406321877,1771737038125,-9317.53277296,0.00015,2]